bitfinex-derivatives/quotes_SOLF0:USTF0_20250520
["timestamp","ask_amount","ask_price","bid_price","bid_amount"]
[1747741341052,5.9928,166.8,166.79,0.04276565]
[1747741346255,72.15489472,166.86,166.79,0.04276565]
[1747741346854,5.992,166.83,166.79,0.04276565]
[1747741347155,72.15489472,166.86,166.79,0.04276565]
[1747741347551,5.9917,166.84,166.79,0.04276565]
[1747741349657,69.4117,166.84,166.79,6.03576565]
[1747741349958,8.0669,166.86,166.79,0.04276565]
[1747741350447,5.9911,166.85,166.79,0.04276565]
[1747741350959,5.9911,166.85,166.81,5.9924]
[1747741352258,5.9911,166.85,166.82,5.9921]
[1747741355759,2.0759,166.86,166.82,5.9921]
[1747741356559,5.9915,166.84,166.82,5.9921]
[1747741356864,5.9915,166.84,166.81,5.9923]
[1747741357463,2.0759,166.86,166.8,5.9927]
[1747741357654,2.0759,166.86,166.79,0.04276565]
[1747741357855,8.55489472,166.86,166.79,0.04276565]
[1747741358058,5.9924,166.82,166.79,6.03586565]
[1747741360256,5.9924,166.82,166.8,5.9928]
[1747741361564,5.9919,166.83,166.81,5.9923]
[1747741361769,8.55489472,166.86,166.81,5.9923]
[1747741362572,5.9916,166.84,166.81,5.9923]
[1747741362760,2.0759,166.86,166.81,5.9923]
[1747741362960,2.0759,166.86,166.82,5.9921]
[1747741363167,5.9915,166.84,166.82,5.9921]
[1747741363473,5.9915,166.84,166.81,5.9924]
[1747741365573,5.9918,166.83,166.81,5.9924]
[1747741369371,5.9917,166.84,166.81,5.9924]
[1747741370177,5.9917,166.84,166.79,0.04276565]
[1747741371272,5.992,166.83,166.79,0.04276565]
[1747741372085,5.9914,166.84,166.79,0.04276565]
[1747741372678,5.9914,166.84,166.81,5.9923]
[1747741372877,5.9914,166.84,166.79,0.04276565]
[1747741373177,5.9914,166.84,166.81,5.9922]
[1747741373377,5.9914,166.84,166.79,0.04276565]
[1747741373579,5.9918,166.83,166.79,0.04276565]
[1747741373774,5.9918,166.83,166.8,5.9926]
[1747741374080,5.9918,166.83,166.79,0.04276565]
[1747741374379,5.9918,166.83,166.8,5.9928]
[1747741374968,5.9918,166.83,166.81,5.9925]
[1747741378683,5.9918,166.83,166.79,6.03576565]
[1747741378871,2.0759,166.86,166.79,0.04276565]
[1747741379071,8.55489472,166.86,166.79,0.04276565]
[1747741379477,5.9928,166.8,166.79,0.04276565]
[1747741385185,5.9928,166.8,166.74,5.9948]
[1747741385186,6.47899472,166.8,166.72,1.1560164]
[1747741385394,6.47899472,166.77,166.72,1.1560164]
[1747741385692,6.47899472,166.77,166.73,1.49904288]
[1747741385991,5.995,166.74,166.73,1.49904288]
[1747741386291,5.9954,166.73,166.72,0.04066345]
[1747741386889,5.9954,166.73,166.72,6.345e-05]
[1747741387092,69.73899472,166.74,166.69,1.5424988]
[1747741387393,6.47899472,166.7,166.67,2.31500278]
[1747741387691,5.9972,166.68,166.67,2.31500278]
[1747741388581,5.9975,166.67,166.66,0.04000995]
[1747741389692,12.47649472,166.67,166.66,0.04000995]
[1747741392690,12.47649472,166.67,166.58,2.1039]
[1747741392691,5.9998,166.61,166.58,2.1039]
[1747741392896,5.9998,166.61,166.57,2.0575]
[1747741393195,63.28,166.65,166.57,2.0575]
[1747741393396,5.9991,166.63,166.57,2.0575]
[1747741393787,0.04247282,166.62,166.58,0.04008288]
[1747741394893,0.04247282,166.62,166.6,5.9997]
[1747741395195,0.04247282,166.62,166.58,0.04008288]
[1747741395589,0.04247282,166.62,166.59,6.0002]
[1747741396395,0.04247282,166.62,166.6,6.0]
[1747741396588,0.04247282,166.62,166.58,0.04008288]
[1747741396987,0.04247282,166.62,166.59,6.0003]
[1747741400388,6.04187282,166.62,166.59,6.0003]
[1747741401399,6.0001,166.6,166.58,0.04008288]
[1747741404200,6.0004,166.59,166.58,0.04008288]
[1747741405104,0.04247282,166.62,166.58,6.04078288]
[1747741405402,0.04247282,166.62,166.58,0.04008288]
[1747741406597,5.9997,166.61,166.59,6.0002]
[1747741408304,6.04187282,166.62,166.59,6.0002]
[1747741408606,6.04187282,166.62,166.6,6.0]
[1747741408808,6.04187282,166.62,166.58,0.04008288]
[1747741409207,6.04187282,166.62,166.59,6.0]
[1747741410712,0.04247282,166.62,166.58,0.04008288]
[1747741411610,0.04247282,166.62,166.6,5.9997]
[1747741413812,0.04247282,166.62,166.61,5.9997]
[1747741415909,0.04247282,166.62,166.59,8.0962]
[1747741416117,0.04247282,166.62,166.58,0.04008288]
[1747741416419,5.9999,166.61,166.58,0.04008288]
[1747741417106,5.9999,166.61,166.58,6.04078288]
[1747741417407,5.9999,166.61,166.58,0.04008288]
[1747741419311,5.9999,166.61,166.58,6.04078288]
[1747741420509,6.04197282,166.62,166.59,6.0003]
[1747741420709,0.04247282,166.62,166.58,0.04008288]
[1747741420908,0.04247282,166.62,166.58,2.12588288]
[1747741421613,0.04247282,166.62,166.61,5.9997]
[1747741426320,0.04247282,166.62,166.61,69.1597]
[1747741429325,0.04247282,166.62,166.61,70.6598377]
[1747741430221,0.04247282,166.62,166.61,1.5001377]
[1747741430428,6.04177282,166.62,166.61,1.5001377]
[1747741430725,0.04247282,166.62,166.58,0.04008288]
[1747741431225,6.04207282,166.62,166.58,6.04078288]
[1747741431614,0.04247282,166.62,166.58,6.04078288]
[1747741431927,0.04247282,166.62,166.59,1.50048385]
[1747741433227,0.04247282,166.62,166.6,1.50048385]
[1747741433623,5.9997,166.61,166.6,1.50048385]
[1747741434024,0.04247282,166.62,166.6,1.50048385]
[1747741435229,0.04247282,166.62,166.58,6.04078288]
[1747741435430,6.04197282,166.62,166.58,6.04078288]
[1747741435738,0.04247282,166.62,166.58,0.04008288]
[1747741436028,6.04197282,166.62,166.58,0.04008288]
[1747741436720,6.04197282,166.62,166.59,1.50045651]
[1747741437225,6.04197282,166.62,166.59,7.50075651]
[1747741437430,0.04247282,166.62,166.59,1.50045651]
[1747741437925,0.04247282,166.62,166.61,5.9997]
[1747741439529,0.04247282,166.62,166.61,7.50015651]
[1747741445340,7.282e-05,166.62,166.61,7.50015651]
[1747741445534,63.06,166.73,166.61,13.97945123]
[1747741445730,63.06,166.73,166.62,65.1494]
[1747741445731,5.9962,166.71,166.62,65.1494]
[1747741446137,5.9962,166.71,166.63,1.50045651]
[1747741446331,5.9962,166.71,166.68,5.9969]
[1747741446531,0.04069902,166.71,166.68,0.04002372]
[1747741446933,0.04069902,166.71,166.69,5.9968]
[1747741447236,0.04069902,166.71,166.68,0.04002372]
[1747741447434,0.04069902,166.71,166.68,6.03712372]
[1747741447737,6.03699902,166.71,166.68,6.03712372]
[1747741448730,6.03699902,166.71,166.69,5.9968]
[1747741448934,0.04069902,166.71,166.69,5.9968]
[1747741449635,0.04069902,166.71,166.7,5.9964]
[1747741451241,0.04069902,166.71,166.7,7.49580004]
[1747741454139,0.04069902,166.71,166.7,5.9964]
[1747741454940,0.04069902,166.71,166.69,7.49610004]
[1747741455146,0.04069902,166.71,166.69,1.49940004]
[1747741455345,6.03699902,166.71,166.69,1.49940004]
[1747741455537,6.03699902,166.71,166.68,6.03692372]
[1747741456140,5.9965,166.7,166.68,6.03692372]
[1747741456445,5.9965,166.7,166.68,0.04002372]
[1747741456635,5.9968,166.69,166.68,0.04002372]
[1747741457846,5.9966,166.7,166.68,0.04002372]
[1747741458048,0.04069902,166.71,166.68,0.04002372]
[1747741459550,6.03679902,166.71,166.68,6.03702372]
[1747741461253,5.9965,166.7,166.68,0.04002372]
[1747741461755,5.9965,166.7,166.68,6.03702372]
[1747741462155,5.9964,166.7,166.68,0.04002372]
[1747741463264,5.9964,166.7,166.68,6.03712372]
[1747741464862,0.04069902,166.71,166.69,5.9967]
[1747741465058,0.04069902,166.71,166.68,0.04002372]
[1747741465364,0.04069902,166.71,166.7,5.9964]
[1747741472665,0.04069902,166.71,166.7,69.0164]
[1747741477065,0.04069902,166.71,166.7,63.02]
[1747741477362,0.04069902,166.71,166.68,0.04002372]
[1747741477865,6.03689902,166.71,166.68,6.03702372]
[1747741478267,0.04069902,166.71,166.68,6.03702372]
[1747741478768,6.03689902,166.71,166.68,6.03702372]
[1747741480068,6.03689902,166.71,166.68,0.04002372]
[1747741480273,6.03689902,166.71,166.69,5.9968]
[1747741480571,0.04069902,166.71,166.69,5.9968]
[1747741482874,0.04069902,166.71,166.68,6.03702372]
[1747741483872,0.04069902,166.71,166.69,5.9968]
[1747741484165,0.04069902,166.71,166.68,0.04002372]
[1747741484373,0.04069902,166.71,166.68,6.03702372]
[1747741485466,0.04069902,166.71,166.69,5.9967]
[1747741485968,0.04069902,166.71,166.7,5.9964]
[1747741486974,0.04069902,166.71,166.7,7.49587086]
[1747741504587,4.1451007,166.77,166.74,5.9947]
[1747741504885,4.1451007,166.77,166.71,67.0851007]
[1747741505589,4.1451007,166.75,166.72,0.0459239]
[1747741505781,0.04442575,166.76,166.72,1.54539476]
[1747741506289,5.9953,166.74,166.72,1.54539476]
[1747741506881,5.9954,166.73,166.72,1.54539476]
[1747741507091,5.9954,166.73,166.72,0.0459239]
[1747741509084,5.9968,166.7,166.67,1.15281347]
[1747741509589,69.41589991,166.73,166.67,1.15281347]
[1747741510189,0.0400657,166.72,166.68,0.04513349]
[1747741510384,0.0400657,166.72,166.68,1.54493514]
[1747741510580,5.9968,166.69,166.68,1.54493514]
[1747741511479,5.9966,166.7,166.68,1.54493514]
[1747741512288,5.9968,166.69,166.68,1.54493514]
[1747741512698,5.9966,166.7,166.68,1.54493514]
[1747741513597,5.9966,166.7,166.68,0.04513349]
[1747741514499,5.9968,166.69,166.68,0.04513349]
[1747741519508,62.96,166.69,166.62,1.15281347]
[1747741519810,3.9509,166.68,166.62,1.15281347]
[1747741520009,3.9509,166.68,166.63,7.49899004]
[1747741520213,3.9509,166.68,166.63,1.50009004]
[1747741520611,5.9983,166.65,166.64,0.04553687]
[1747741523215,68.9583,166.65,166.64,0.04553687]
[1747741523914,62.96,166.65,166.64,0.04553687]
[1747741524217,0.04463484,166.67,166.64,0.04553687]
[1747741524620,6.04233484,166.67,166.64,0.04553687]
[1747741525317,5.9979,166.66,166.64,0.04553687]
[1747741527621,5.9982,166.65,166.64,0.04553687]
[1747741528521,5.998,166.66,166.64,0.04553687]
[1747741528724,0.04463484,166.67,166.64,0.04553687]
[1747741529126,5.9982,166.65,166.64,0.04553687]
[1747741530330,0.04463484,166.67,166.64,0.04553687]
[1747741530726,5.9979,166.66,166.64,0.04553687]
[1747741534335,5.9982,166.65,166.64,0.04553687]
[1747741534733,0.04463484,166.67,166.64,0.04553687]
[1747741534934,5.9981,166.66,166.64,0.04553687]
[1747741536440,5.9982,166.65,166.64,0.04553687]
[1747741536937,5.998,166.66,166.64,0.04553687]
[1747741537238,0.04463484,166.67,166.64,0.04553687]
[1747741538037,5.9979,166.66,166.64,0.04553687]
[1747741540741,5.9982,166.65,166.64,0.04553687]
[1747741541342,5.998,166.66,166.64,0.04553687]
[1747741544847,0.04463484,166.67,166.65,5.9982]
[1747741545144,0.04463484,166.67,166.64,0.04553687]
[1747741545943,5.998,166.66,166.64,0.04553687]
[1747741550545,6.04233484,166.67,166.64,0.04553687]
[1747741551545,6.04233484,166.67,166.64,6.04403687]
[1747741553338,0.04463484,166.67,166.66,5.9979]
[1747741555146,62.88,166.71,166.69,5.9966]
[1747741555450,10.14246504,166.72,166.69,5.9966]
[1747741556047,10.18385656,166.72,166.69,6.03500749]
[1747741556953,5.9961,166.71,166.69,0.03840749]
[1747741557153,4.18795656,166.72,166.69,0.03840749]
[1747741557654,0.04139152,166.72,166.69,0.03840749]
[1747741557955,5.9963,166.71,166.69,0.03840749]
[1747741558158,0.04139152,166.72,166.69,0.03840749]
[1747741559255,5.9964,166.7,166.69,0.03840749]
[1747741560849,5.9983,166.65,166.62,7.15201347]
[1747741561044,6.47749867,166.69,166.62,1.15281347]
[1747741561749,0.04142104,166.67,166.64,0.03971977]
[1747741562744,62.78,166.66,166.64,0.03971977]
[1747741563260,5.9982,166.65,166.64,0.03971977]
[1747741566460,62.78,166.66,166.64,0.03971977]
[1747741566659,0.04142104,166.67,166.64,0.03971977]
[1747741567565,0.04142104,166.67,166.65,5.9982]
[1747741568458,6.03902104,166.67,166.64,6.03821977]
[1747741568657,0.04142104,166.67,166.64,6.03821977]
[1747741571265,6.03902104,166.67,166.64,6.03821977]
[1747741571453,0.04142104,166.67,166.64,0.03971977]
[1747741571862,5.9979,166.66,166.64,0.03971977]
[1747741572059,0.04142104,166.67,166.64,6.03831977]
[1747741572666,0.04142104,166.67,166.65,5.9982]
[1747741572963,0.04142104,166.67,166.64,0.03971977]
[1747741573368,0.04142104,166.67,166.66,5.9979]
[1747741580067,0.04142104,166.67,166.66,7.49775387]
[1747741582372,0.04142104,166.67,166.66,5.9979]
[1747741582569,0.04142104,166.67,166.65,5.9982]
[1747741582872,0.04142104,166.67,166.64,0.03971977]
[1747741583070,0.04142104,166.67,166.65,5.9982]
[1747741584570,0.04142104,166.67,166.66,5.9979]
[1747741589675,0.04142104,166.67,166.64,0.03971977]
[1747741590769,5.9979,166.66,166.64,0.03971977]
[1747741591672,0.04142104,166.67,166.64,0.03971977]
[1747741591881,5.9983,166.65,166.64,0.03971977]
[1747741606698,6.47749867,166.65,166.58,1.50052839]
[1747741606996,62.66,166.64,166.58,1.50052839]
[1747741607387,62.66,166.64,166.55,6.0017]
[1747741607589,0.04376948,166.61,166.54,1.15281347]
[1747741607789,62.66,166.6,166.56,0.03942917]
[1747741607986,62.66,166.6,166.56,6.04092917]
[1747741609302,68.6601,166.6,166.56,6.04092917]
[1747741610302,6.0006,166.59,166.56,6.04092917]
[1747741611403,6.0008,166.58,166.56,0.03942917]
[1747741611799,62.66,166.6,166.56,0.03942917]
[1747741612001,6.0007,166.59,166.56,6.04082917]
[1747741612202,6.0007,166.59,166.56,0.03942917]
[1747741613296,62.66,166.6,166.56,0.03942917]
[1747741613602,6.0011,166.58,166.56,0.03942917]
[1747741613797,62.66,166.6,166.56,0.03942917]
[1747741614400,6.0009,166.58,166.56,0.03942917]
[1747741614998,6.0011,166.57,166.56,0.03942917]
[1747741615494,6.001,166.58,166.56,0.03942917]
[1747741617507,6.0011,166.57,166.56,0.03942917]
[1747741618008,6.0009,166.58,166.56,0.03942917]
[1747741620105,6.0011,166.57,166.56,0.03942917]
[1747741622803,6.0009,166.58,166.56,0.03942917]
[1747741623113,62.66,166.6,166.56,0.03942917]
[1747741623810,62.66,166.6,166.56,6.04082917]
[1747741624411,6.0008,166.59,166.56,6.04082917]
[1747741625016,68.6602,166.6,166.57,6.0011]
[1747741626317,6.0005,166.59,166.56,6.04082917]
[1747741626815,6.0005,166.59,166.56,0.03942917]
[1747741627718,6.0005,166.59,166.57,6.0011]
[1747741628417,6.0006,166.59,166.56,6.04072917]
[1747741629615,62.66,166.6,166.57,6.0011]
[1747741629616,68.6602,166.6,166.57,6.0011]
[1747741630811,62.66,166.6,166.56,0.03942917]
[1747741631210,62.66,166.6,166.59,6.0004]
[1747741633217,0.04376948,166.61,166.6,6.0001]
[1747741634218,0.04376948,166.61,166.59,6.0003]
[1747741636216,0.04376948,166.61,166.6,6.0001]
[1747741636617,6.04346948,166.61,166.56,0.03942917]
[1747741637120,6.04346948,166.61,166.59,6.0002]
[1747741639719,6.04346948,166.61,166.58,6.0006]
[1747741640519,6.04346948,166.61,166.59,6.0004]
[1747741640822,6.04346948,166.61,166.58,6.0006]
[1747741641025,6.04346948,166.61,166.56,0.03942917]
[1747741641319,6.0001,166.6,166.57,6.0009]
[1747741641821,6.0005,166.59,166.56,0.03942917]
[1747741642015,4.15134114,166.58,166.56,0.03942917]
[1747741642218,66.71134114,166.58,166.56,0.03942917]
[1747741643725,6.0011,166.57,166.56,0.03942917]
[1747741645221,69.04930059,166.58,166.49,1.15281347]
[1747741645726,69.04930059,166.58,166.5,6.0036]
[1747741646226,0.04131506,166.56,166.52,0.03872802]
[1747741647430,6.0023,166.54,166.52,0.03872802]
[1747741647630,68.5823,166.54,166.52,0.03872802]
[1747741648033,62.58,166.54,166.46,1.15281347]
[1747741648223,6.48930059,166.51,166.46,1.15281347]
[1747741648424,62.58,166.5,166.46,1.15281347]
[1747741649023,62.6214492,166.5,166.46,0.04075725]
[1747741650029,6.0047,166.47,166.46,0.04075725]
[1747741650434,62.6214492,166.5,166.46,0.04075725]
[1747741650728,6.0043,166.49,166.46,0.04075725]
[1747741651230,6.0045,166.48,166.46,0.04075725]
[1747741653531,68.6252492,166.5,166.47,6.0047]
[1747741653825,68.5452492,166.5,166.47,6.0047]
[1747741654028,62.5414492,166.5,166.46,0.04075725]
[1747741654233,6.0043,166.49,166.46,6.04575725]
[1747741655830,62.5414492,166.5,166.46,6.04575725]
[1747741656026,6.0044,166.48,166.46,6.04575725]
[1747741656429,6.0044,166.48,166.46,0.04075725]
[1747741656828,62.5414492,166.5,166.46,0.04075725]
[1747741657035,62.5414492,166.5,166.47,6.0047]
[1747741657234,68.5452492,166.5,166.47,6.0047]
[1747741658235,6.0452492,166.5,166.47,6.0047]
[1747741660929,6.0041,166.49,166.46,6.04575725]
[1747741661129,6.0041,166.49,166.46,0.04075725]
[1747741661424,6.0041,166.49,166.46,6.04555725]
[1747741662536,0.0414492,166.5,166.46,0.04075725]
[1747741663035,6.0048,166.47,166.46,0.04075725]
[1747741664934,6.0046,166.48,166.46,0.04075725]
[1747741665133,0.0414492,166.5,166.46,0.04075725]
[1747741666038,6.0046,166.48,166.46,0.04075725]
[1747741669644,6.0048,166.47,166.46,0.04075725]
[1747741670543,6.0045,166.48,166.46,0.04075725]
[1747741670745,0.0414492,166.5,166.46,0.04075725]
[1747741670945,0.0414492,166.5,166.46,6.04585725]
[1747741671741,0.0414492,166.5,166.46,0.04075725]
[1747741672047,6.0046,166.48,166.46,0.04075725]
[1747741672241,0.0414492,166.5,166.46,0.04075725]
[1747741674247,6.0048,166.47,166.46,0.04075725]
[1747741678844,68.5048,166.47,166.46,0.04075725]
[1747741680851,68.5048,166.47,166.46,5.725e-05]
[1747741682052,6.0069,166.42,166.38,101.03677325]
[1747741682349,6.0069,166.42,166.39,6.0076]
[1747741682951,6.04759283,166.42,166.39,6.0468262]
[1747741683146,6.0071,166.41,166.39,0.0392262]
[1747741683452,0.04069283,166.42,166.39,0.0392262]
[1747741684441,6.0072,166.41,166.39,0.0392262]
[1747741685845,6.0073,166.4,166.39,0.0392262]
[1747741688746,0.04069283,166.42,166.39,0.0392262]
[1747741689254,6.04749283,166.42,166.39,0.0392262]
[1747741689453,0.04069283,166.42,166.39,0.0392262]
[1747741690257,0.04069283,166.42,166.39,6.0468262]
[1747741690759,6.04759283,166.42,166.39,6.0468262]
[1747741691054,0.04069283,166.42,166.39,6.0468262]
[1747741692053,6.007,166.41,166.39,6.0468262]
[1747741692357,0.04069283,166.42,166.39,6.0468262]
[1747741692854,6.0071,166.41,166.39,6.0468262]
[1747741693058,0.04069283,166.42,166.39,0.0392262]
[1747741693355,6.0073,166.4,166.39,0.0392262]
[1747741694763,0.04069283,166.42,166.39,0.0392262]
[1747741696358,0.04069283,166.42,166.41,6.0069]
[1747741704354,0.04069283,166.42,166.4,6.0071]
[1747741705266,0.04069283,166.42,166.41,6.0069]
[1747741707869,0.04069283,166.42,166.39,0.0392262]
[1747741708467,6.0072,166.41,166.39,6.0467262]
[1747741708870,6.04739283,166.42,166.39,6.0467262]
[1747741709171,6.04739283,166.42,166.4,6.0072]
[1747741709374,0.04069283,166.42,166.39,0.0392262]
[1747741709871,0.04069283,166.42,166.4,6.0073]
[1747741710072,0.04069283,166.42,166.39,0.0392262]
[1747741710468,0.04069283,166.42,166.4,6.007]
[1747741710973,0.04069283,166.42,166.4,6.0073]
[1747741712172,0.04069283,166.42,166.41,6.0069]
[1747741712471,0.04069283,166.42,166.39,0.0392262]
[1747741712669,0.04069283,166.42,166.4,6.007]
[1747741713282,0.04069283,166.42,166.41,6.0069]
[1747741715275,0.04069283,166.42,166.4,6.0071]
[1747741715770,0.04069283,166.42,166.39,0.0392262]
[1747741715971,0.04069283,166.42,166.4,6.0073]
[1747741716273,0.04069283,166.42,166.39,0.0392262]
[1747741716966,0.04069283,166.42,166.41,6.0069]
[1747741719668,0.04069283,166.42,166.41,7.50898691]
[1747741720181,0.04069283,166.42,166.41,1.50208691]
[1747741720672,0.04069283,166.42,166.39,0.0392262]
[1747741721568,6.04729283,166.42,166.4,6.0071]
[1747741721770,6.04729283,166.42,166.39,0.0392262]
[1747741721970,6.04729283,166.42,166.4,1.50219775]
[1747741722269,6.0069,166.41,166.4,1.50219775]
[1747741724777,6.0073,166.4,166.39,0.0392262]
[1747741725880,6.0073,166.4,166.39,1.54156183]
[1747741727578,6.0073,166.4,166.39,0.0392262]
[1747741728382,6.0071,166.41,166.39,0.0392262]
[1747741728578,4.2002268,166.42,166.39,4.19876017]
[1747741728579,0.04069283,166.42,166.39,4.19876017]
[1747741728977,0.04069283,166.42,166.4,6.0069]
[1747741729782,0.04069283,166.42,166.41,1.50218764]
[1747741730576,0.04069283,166.42,166.41,7.50908764]
[1747741732782,0.04069283,166.42,166.41,1.50218764]
[1747741733587,0.04069283,166.42,166.41,7.50908764]
[1747741733788,0.04069283,166.42,166.41,1.50218764]
[1747741734176,0.04069283,166.42,166.41,7.50908764]
[1747741741986,9.283e-05,166.42,166.41,7.50908764]
[1747741745086,11.09901775,166.54,166.41,7.50218764]
[1747741745293,11.09901775,166.54,166.46,6.49790845]
[1747741745490,11.09901775,166.54,166.47,68.1123]
[1747741745791,11.09901775,166.54,166.53,6.0026]
[1747741745991,11.09901775,166.54,166.53,62.16]
[1747741746189,11.09901775,166.54,166.52,0.03942596]
[1747741746383,0.03922337,166.55,166.52,0.03942596]
[1747741746993,0.03922337,166.55,166.53,6.0025]
[1747741747294,0.03922337,166.55,166.52,0.03942596]
[1747741747789,6.04122337,166.55,166.52,6.04222596]
[1747741749903,6.04122337,166.55,166.53,6.0026]
[1747741749904,0.03922337,166.55,166.53,6.0026]
[1747741750704,0.03922337,166.55,166.54,6.0022]
[1747741753202,70.59850845,166.64,166.59,6.0001]
[1747741753402,62.14,166.64,166.53,72.56790845]
[1747741753803,5.9991,166.63,166.6,5.9999]
[1747741754296,0.04327459,166.63,166.6,0.04372513]
[1747741755005,6.04227459,166.63,166.6,0.04372513]
[1747741755507,0.04327459,166.63,166.6,0.04372513]
[1747741756098,5.9997,166.61,166.6,0.04372513]
[1747741761210,12.49790845,166.61,166.51,581.02]
[1747741761512,6.49790845,166.58,166.48,64.1941]
[1747741761814,6.0027,166.53,166.48,62.12]
[1747741762011,68.61790845,166.58,166.48,62.12]
[1747741762310,6.003,166.52,166.51,0.04194067]
[1747741766011,0.04087951,166.55,166.51,6.04504067]
[1747741766313,0.04087951,166.55,166.51,0.04194067]
[1747741766617,0.04087951,166.55,166.52,6.0027]
[1747741767011,6.0026,166.53,166.51,6.04514067]
[1747741767317,0.04087951,166.55,166.51,0.04194067]
[1747741768320,6.003,166.52,166.51,0.04194067]
[1747741771419,6.0027,166.53,166.51,0.04194067]
[1747741771819,0.04087951,166.55,166.51,0.04194067]
[1747741772021,6.04287951,166.55,166.52,6.0029]
[1747741772213,0.04087951,166.55,166.51,0.04194067]
[1747741772619,6.0025,166.54,166.51,6.04514067]
[1747741773119,6.0025,166.54,166.52,6.0029]
[1747741773307,6.0027,166.53,166.51,0.04194067]
[1747741774320,6.0024,166.54,166.51,6.04504067]
[1747741774523,6.0024,166.54,166.51,0.04194067]
[1747741775624,6.0024,166.54,166.52,6.0028]
[1747741776822,6.0024,166.54,166.51,6.04514067]
[1747741777220,6.0027,166.53,166.51,0.04194067]
[1747741777524,0.04087951,166.55,166.51,0.04194067]
[1747741778423,6.0028,166.53,166.51,0.04194067]
[1747741778822,0.04087951,166.55,166.51,0.04194067]
[1747741779021,6.04297951,166.55,166.51,0.04194067]
[1747741779722,6.04297951,166.55,166.52,6.0029]
[1747741780021,6.04297951,166.55,166.51,0.04194067]
[1747741780321,6.04297951,166.55,166.52,6.0027]
[1747741780823,0.04087951,166.55,166.51,0.04194067]
[1747741781925,0.04087951,166.55,166.51,62.06194067]
[1747741782826,0.04087951,166.55,166.54,6.0022]
[1747741787421,0.04087951,166.55,166.53,6.0024]
[1747741788028,0.04087951,166.55,166.52,6.0029]
[1747741788228,0.04087951,166.55,166.51,62.06194067]
[1747741788627,6.04287951,166.55,166.51,62.06194067]
[1747741788927,0.04087951,166.55,166.51,62.06194067]
[1747741789431,0.04087951,166.55,166.53,6.0024]
[1747741790116,0.04087951,166.55,166.52,6.0028]
[1747741790631,6.0023,166.54,166.52,6.0028]
[1747741790927,0.04087951,166.55,166.53,6.0026]
[1747741792825,0.04087951,166.55,166.54,6.0022]
[1747741793026,0.04087951,166.55,166.51,62.06194067]
[1747741793233,6.04287951,166.55,166.51,62.06194067]
[1747741793434,0.04087951,166.55,166.52,6.0027]
[1747741793832,6.0025,166.54,166.52,6.0027]
[1747741794033,0.04087951,166.55,166.52,7.50377552]
[1747741794333,0.04087951,166.55,166.53,6.0026]
[1747741794530,6.04297951,166.55,166.53,6.0026]
[1747741797233,6.04297951,166.55,166.52,6.0028]
[1747741797735,6.0023,166.54,166.52,6.0028]
[1747741798435,6.04287951,166.55,166.53,6.0026]
[1747741799734,0.04087951,166.55,166.53,6.0026]
[1747741799939,0.04087951,166.55,166.54,6.0022]
[1747741800737,0.04087951,166.55,166.51,62.06194067]
[1747741801640,0.04087951,166.55,166.54,6.0022]
[1747741802631,0.04087951,166.55,166.52,1.50103326]
[1747741803342,6.0026,166.53,166.52,1.50103326]
[1747741803639,0.04087951,166.55,166.51,0.04194067]
[1747741804335,6.003,166.52,166.51,0.04194067]
[1747741807644,6.0046,166.48,166.45,63.17281347]
[1747741807943,6.49790845,166.51,166.45,1.15281347]
[1747741808340,6.0054,166.46,166.43,6.0062]
[1747741808542,6.0054,166.46,166.43,6.04560943]
[1747741808748,0.04296009,166.46,166.43,6.04560943]
[1747741808946,6.0055,166.45,166.43,0.03940943]
[1747741809347,0.04296009,166.46,166.43,0.03940943]
[1747741809748,6.0059,166.44,166.43,0.03940943]
[1747741812250,6.0056,166.45,166.43,0.03940943]
[1747741813151,6.04826009,166.46,166.43,0.03940943]
[1747741813343,6.04826009,166.46,166.43,6.04560943]
[1747741814251,0.04296009,166.46,166.43,6.04560943]
[1747741814554,0.04296009,166.46,166.44,6.0058]
[1747741814747,0.04296009,166.46,166.43,0.03940943]
[1747741815254,2.1055,166.53,166.44,61.92]
[1747741815450,2.1055,166.53,166.44,63.8934]
[1747741815954,8.1083,166.53,166.44,63.8934]
[1747741816154,0.04333231,166.5,166.47,0.04328236]
[1747741816452,0.04333231,166.5,166.49,6.0038]
[1747741818356,0.04333231,166.5,166.48,6.0043]
[1747741818946,0.04333231,166.5,166.47,0.04328236]
[1747741819155,6.0044,166.48,166.47,0.04328236]
[1747741821155,6.006,166.44,166.41,1.50189483]
[1747741821453,68.41790845,166.5,166.41,1.50189483]
[1747741821656,68.41790845,166.5,166.42,6.0064]